[Event "Late-Titled-Tuesday-Blitz-February-13-2024"]
[Site "Chess.com"]
[Date "2024.02.13"]
[Round "11"]
[White "BozeKat"]
[Black "sansanathalia"]
[Result "0-1"]
[WhiteElo "2064"]
[BlackElo "2384"]
[TimeControl "180+1"]
[EndTime "16:03:18 PST"]
[Termination "sansanathalia won on time"]

1. c4 {[%clk 0:03:00.9]} 1... e6 {[%clk 0:02:55]} 2. g3 {[%clk 0:02:59.1]} 2...
Nf6 {[%clk 0:02:54.3]} 3. Bg2 {[%clk 0:02:58.9]} 3... d5 {[%clk 0:02:54.9]} 4.
b3 {[%clk 0:02:57.4]} 4... Be7 {[%clk 0:02:55.2]} 5. Bb2 {[%clk 0:02:55.8]} 5...
O-O {[%clk 0:02:55.7]} 6. Nf3 {[%clk 0:02:52.6]} 6... b6 {[%clk 0:02:55]} 7. O-O
{[%clk 0:02:50.5]} 7... Bb7 {[%clk 0:02:54.6]} 8. Ne5 {[%clk 0:02:27.2]} 8...
Nbd7 {[%clk 0:02:51.2]} 9. d4 {[%clk 0:02:14.8]} 9... c5 {[%clk 0:02:48.7]} 10.
dxc5 {[%clk 0:02:02.6]} 10... Nxc5 {[%clk 0:02:46.3]} 11. Nd2 {[%clk 0:01:51.7]}
11... Qc7 {[%clk 0:02:41.7]} 12. Rc1 {[%clk 0:01:45.1]} 12... Rad8 {[%clk
0:02:35.6]} 13. cxd5 {[%clk 0:01:36.2]} 13... Bxd5 {[%clk 0:02:32.8]} 14. Bxd5
{[%clk 0:01:24.8]} 14... Rxd5 {[%clk 0:02:33.7]} 15. Nec4 {[%clk 0:00:53.2]}
15... Rfd8 {[%clk 0:02:24.1]} 16. Qc2 {[%clk 0:00:51.2]} 16... b5 {[%clk
0:02:05.2]} 17. e4 {[%clk 0:00:43.5]} 17... R5d7 {[%clk 0:01:59.4]} 18. b4
{[%clk 0:00:29.6]} 18... bxc4 {[%clk 0:01:55.1]} 19. Nxc4 {[%clk 0:00:28.2]}
19... Nd3 {[%clk 0:01:50.1]} 20. Rb1 {[%clk 0:00:20.9]} 20... Nxb4 {[%clk
0:01:47.5]} 21. Qc3 {[%clk 0:00:17.7]} 21... Rd3 {[%clk 0:01:42.3]} 22. Qe5
{[%clk 0:00:08.5]} 22... Qxc4 {[%clk 0:01:40.2]} 23. g4 {[%clk 0:00:04.6]} 23...
Qxe4 {[%clk 0:01:35.9]} 0-1

[Event "Late-Titled-Tuesday-Blitz-February-13-2024"]
[Site "Chess.com"]
[Date "2024.02.13"]
[Round "11"]
[White "A-Fier"]
[Black "GlavkonVVS"]
[Result "1-0"]
[WhiteElo "2782"]
[BlackElo "2566"]
[TimeControl "180+1"]
[EndTime "16:03:41 PST"]
[Termination "A-Fier won by resignation"]

1. e4 {[%clk 0:03:00.9]} 1... Nf6 {[%clk 0:03:00.6]} 2. e5 {[%clk 0:03:01]} 2...
Nd5 {[%clk 0:03:01.1]} 3. d4 {[%clk 0:03:01.3]} 3... d6 {[%clk 0:03:01.4]} 4. c4
{[%clk 0:03:02.1]} 4... Nb6 {[%clk 0:03:01.5]} 5. f4 {[%clk 0:03:02.9]} 5...
dxe5 {[%clk 0:03:01.5]} 6. fxe5 {[%clk 0:03:03.5]} 6... c5 {[%clk 0:03:02.2]} 7.
d5 {[%clk 0:03:03.7]} 7... g6 {[%clk 0:03:02.7]} 8. Nc3 {[%clk 0:03:03.7]} 8...
Bg7 {[%clk 0:03:03.1]} 9. Bf4 {[%clk 0:03:04.1]} 9... O-O {[%clk 0:03:03.1]} 10.
Be2 {[%clk 0:03:03.8]} 10... e6 {[%clk 0:03:03.5]} 11. Nf3 {[%clk 0:03:01.3]}
11... exd5 {[%clk 0:03:03.2]} 12. cxd5 {[%clk 0:03:01.9]} 12... Bg4 {[%clk
0:03:03.5]} 13. O-O {[%clk 0:03:02.2]} 13... N8d7 {[%clk 0:03:01.2]} 14. Ng5
{[%clk 0:03:02.1]} 14... Bxe2 {[%clk 0:02:56.9]} 15. Qxe2 {[%clk 0:03:03]} 15...
Nxe5 {[%clk 0:02:57]} 16. Qe3 {[%clk 0:02:47.6]} 16... Nbc4 {[%clk 0:02:52.8]}
17. Qh3 {[%clk 0:02:48]} 17... h6 {[%clk 0:02:45.7]} 18. Nge4 {[%clk 0:02:48.6]}
18... g5 {[%clk 0:02:41.9]} 19. Bxe5 {[%clk 0:02:45.8]} 19... Nxe5 {[%clk
0:02:36.7]} 20. Ng3 {[%clk 0:02:46.4]} 20... g4 {[%clk 0:02:19.3]} 21. Qh5
{[%clk 0:02:46.8]} 21... Qg5 {[%clk 0:02:19.1]} 22. Qxg5 {[%clk 0:02:45.5]}
22... hxg5 {[%clk 0:02:19.2]} 23. Nce4 {[%clk 0:02:46.4]} 23... Nd7 {[%clk
0:02:14.4]} 24. Nf5 {[%clk 0:02:46.4]} 24... Bxb2 {[%clk 0:02:11.4]} 25. Rab1
{[%clk 0:02:46]} 25... Bd4+ {[%clk 0:02:08.2]} 26. Kh1 {[%clk 0:02:45.8]} 26...
b6 {[%clk 0:02:05.9]} 27. Nxg5 {[%clk 0:02:46]} 27... Bf6 {[%clk 0:01:58]} 28.
Ne4 {[%clk 0:02:45.6]} 28... Rae8 {[%clk 0:01:53.2]} 29. Nfd6 {[%clk 0:02:45.2]}
29... Bd4 {[%clk 0:01:41.4]} 30. Nxe8 {[%clk 0:02:45]} 30... Rxe8 {[%clk
0:01:41.8]} 31. Rf4 {[%clk 0:02:44.4]} 31... f5 {[%clk 0:01:35.9]} 32. Nd6
{[%clk 0:02:44.7]} 32... Be5 {[%clk 0:01:27.5]} 33. Re1 {[%clk 0:02:45.3]} 33...
Bxf4 {[%clk 0:01:24]} 34. Rxe8+ {[%clk 0:02:44.9]} 34... Nf8 {[%clk 0:01:23.8]}
35. Nxf5 {[%clk 0:02:45.2]} 35... Kf7 {[%clk 0:01:18.9]} 36. Ra8 {[%clk
0:02:44.5]} 36... c4 {[%clk 0:01:17]} 37. Rxa7+ {[%clk 0:02:44.7]} 37... Kf6
{[%clk 0:01:17.2]} 38. Nd4 {[%clk 0:02:45.2]} 38... Ke5 {[%clk 0:01:12.9]} 39.
Ne2 {[%clk 0:02:42.3]} 39... Bg5 {[%clk 0:01:05.5]} 40. Rf7 {[%clk 0:02:40.4]}
40... Ng6 {[%clk 0:01:01]} 41. d6 {[%clk 0:02:40.9]} 41... Kxd6 {[%clk 0:00:50]}
42. Rg7 {[%clk 0:02:41.1]} 42... Nf4 {[%clk 0:00:50.4]} 43. Nc3 {[%clk 0:02:24]}
43... Ne6 {[%clk 0:00:49]} 44. Rg8 {[%clk 0:02:15.7]} 44... Ke5 {[%clk
0:00:46.8]} 45. Rc8 {[%clk 0:02:14.9]} 45... Kd4 {[%clk 0:00:43.7]} 46. Na4
{[%clk 0:02:15.3]} 46... b5 {[%clk 0:00:42.7]} 47. Nb6 {[%clk 0:02:11]} 47...
Bd8 {[%clk 0:00:39.8]} 48. Nd7 {[%clk 0:02:08.3]} 48... c3 {[%clk 0:00:37.2]}
49. Kg1 {[%clk 0:02:08.8]} 49... Bb6 {[%clk 0:00:35.3]} 50. Kf1 {[%clk 0:02:09]}
50... b4 {[%clk 0:00:29.6]} 51. Nxb6 {[%clk 0:02:08.8]} 51... Kd3 {[%clk
0:00:26.3]} 52. Nd5 {[%clk 0:02:09.3]} 52... Nd4 {[%clk 0:00:21.7]} 53. Nxb4+
{[%clk 0:02:08.9]} 53... Kd2 {[%clk 0:00:22.3]} 54. a4 {[%clk 0:02:08.4]} 54...
c2 {[%clk 0:00:22.2]} 55. Nxc2 {[%clk 0:02:08.9]} 1-0

[Event "Late-Titled-Tuesday-Blitz-February-13-2024"]
[Site "Chess.com"]
[Date "2024.02.13"]
[Round "11"]
[White "kids2010"]
[Black "DenLaz"]
[Result "0-1"]
[WhiteElo "2777"]
[BlackElo "3046"]
[TimeControl "180+1"]
[EndTime "16:03:44 PST"]
[Termination "DenLaz won by resignation"]

1. e4 {[%clk 0:03:00.9]} 1... c5 {[%clk 0:02:59.5]} 2. c3 {[%clk 0:03:01.1]}
2... d5 {[%clk 0:02:58.5]} 3. exd5 {[%clk 0:03:01.4]} 3... Qxd5 {[%clk
0:02:59.4]} 4. d4 {[%clk 0:03:02.1]} 4... Nf6 {[%clk 0:02:58.9]} 5. Nf3 {[%clk
0:03:02.4]} 5... e6 {[%clk 0:02:58.4]} 6. Na3 {[%clk 0:03:01.5]} 6... a6 {[%clk
0:02:58.5]} 7. Nc4 {[%clk 0:03:01.2]} 7... Nbd7 {[%clk 0:02:58.8]} 8. Bd3 {[%clk
0:02:51.5]} 8... Be7 {[%clk 0:02:58.3]} 9. O-O {[%clk 0:02:51.2]} 9... O-O
{[%clk 0:02:58.7]} 10. Bf4 {[%clk 0:02:34.5]} 10... b6 {[%clk 0:02:48.3]} 11.
Ne3 {[%clk 0:02:30.3]} 11... Qc6 {[%clk 0:02:48.2]} 12. Ne5 {[%clk 0:02:30.1]}
12... Nxe5 {[%clk 0:02:47]} 13. dxe5 {[%clk 0:02:31]} 13... Nd7 {[%clk
0:02:45.9]} 14. Qh5 {[%clk 0:02:23.3]} 14... g6 {[%clk 0:02:46.1]} 15. Qh3
{[%clk 0:02:22.5]} 15... Bb7 {[%clk 0:02:41.9]} 16. Rad1 {[%clk 0:02:18.4]}
16... Rfd8 {[%clk 0:02:39.2]} 17. Ng4 {[%clk 0:02:16.2]} 17... h5 {[%clk
0:02:35.6]} 18. Ne3 {[%clk 0:02:06.7]} 18... Nf8 {[%clk 0:02:33.4]} 19. Be2
{[%clk 0:02:05.3]} 19... Rxd1 {[%clk 0:02:30.9]} 20. Rxd1 {[%clk 0:02:06.2]}
20... Rd8 {[%clk 0:02:30.9]} 21. Rxd8 {[%clk 0:01:57.5]} 21... Bxd8 {[%clk
0:02:31.8]} 22. Bf3 {[%clk 0:01:50.1]} 22... Qd7 {[%clk 0:02:31.3]} 23. Nc4
{[%clk 0:01:46.4]} 23... Qd3 {[%clk 0:02:07.8]} 24. Nd2 {[%clk 0:01:31.1]} 24...
Bd5 {[%clk 0:01:57.3]} 25. Be3 {[%clk 0:01:11.9]} 25... Nd7 {[%clk 0:01:50.9]}
26. Bxd5 {[%clk 0:01:05.3]} 26... Qxd5 {[%clk 0:01:51.8]} 27. c4 {[%clk
0:00:46.6]} 27... Qxe5 {[%clk 0:01:50]} 28. Qf3 {[%clk 0:00:47]} 28... Bf6
{[%clk 0:01:34.3]} 29. Qa8+ {[%clk 0:00:21.2]} 29... Kg7 {[%clk 0:01:33.8]} 30.
Qe8 {[%clk 0:00:21.2]} 30... Qd6 {[%clk 0:01:28.4]} 31. g3 {[%clk 0:00:21.1]}
31... Ne5 {[%clk 0:01:23.5]} 32. f4 {[%clk 0:00:16.7]} 32... Ng4 {[%clk
0:01:21.9]} 0-1

[Event "Late-Titled-Tuesday-Blitz-February-13-2024"]
[Site "Chess.com"]
[Date "2024.02.13"]
[Round "11"]
[White "Supelyel"]
[Black "BeardedNM"]
[Result "1-0"]
[WhiteElo "2417"]
[BlackElo "2161"]
[TimeControl "180+1"]
[EndTime "16:03:49 PST"]
[Termination "Supelyel won by resignation"]

1. c4 {[%clk 0:02:52.5]} 1... e6 {[%clk 0:03:00.1]} 2. Nf3 {[%clk 0:02:32.6]}
2... Nf6 {[%clk 0:02:59.6]} 3. Nc3 {[%clk 0:02:32.3]} 3... d5 {[%clk 0:02:59.8]}
4. cxd5 {[%clk 0:02:32.9]} 4... exd5 {[%clk 0:03:00.7]} 5. d4 {[%clk 0:02:32.5]}
5... Be7 {[%clk 0:03:00.3]} 6. Qc2 {[%clk 0:02:32.4]} 6... O-O {[%clk
0:03:00.1]} 7. Bf4 {[%clk 0:02:32.9]} 7... c6 {[%clk 0:03:00.2]} 8. e3 {[%clk
0:02:33.1]} 8... Nbd7 {[%clk 0:02:54.1]} 9. Bd3 {[%clk 0:02:32.6]} 9... Re8
{[%clk 0:02:54.2]} 10. g4 {[%clk 0:02:24.5]} 10... Nf8 {[%clk 0:02:42.1]} 11. g5
{[%clk 0:02:21.8]} 11... Ne4 {[%clk 0:02:42.2]} 12. Nxe4 {[%clk 0:02:20.5]}
12... dxe4 {[%clk 0:02:42.4]} 13. Bxe4 {[%clk 0:02:20.2]} 13... Bb4+ {[%clk
0:02:31.8]} 14. Ke2 {[%clk 0:01:33]} 14... Ng6 {[%clk 0:02:08.6]} 15. Bg3 {[%clk
0:01:25.5]} 15... Bg4 {[%clk 0:01:56.3]} 16. h4 {[%clk 0:01:13.6]} 16... f5
{[%clk 0:01:39.4]} 17. gxf6 {[%clk 0:01:09.5]} 17... Qxf6 {[%clk 0:01:35.1]} 18.
h5 {[%clk 0:01:08.3]} 18... Nf8 {[%clk 0:00:58.7]} 19. Rh4 {[%clk 0:01:07.3]}
19... Be6 {[%clk 0:00:36.6]} 20. Be5 {[%clk 0:00:53.6]} 20... Qf7 {[%clk
0:00:31.1]} 21. Rg1 {[%clk 0:00:52.9]} 21... Bc4+ {[%clk 0:00:24]} 22. Kd1
{[%clk 0:00:52.4]} 1-0

[Event "Late-Titled-Tuesday-Blitz-February-13-2024"]
[Site "Chess.com"]
[Date "2024.02.13"]
[Round "11"]
[White "Conejoviejo67"]
[Black "Mariia89"]
[Result "1-0"]
[WhiteElo "2432"]
[BlackElo "2256"]
[TimeControl "180+1"]
[EndTime "16:03:55 PST"]
[Termination "Conejoviejo67 won by resignation"]

1. e4 {[%clk 0:03:00.9]} 1... c6 {[%clk 0:02:59.9]} 2. Nc3 {[%clk 0:02:59.5]}
2... d5 {[%clk 0:03:00.8]} 3. d4 {[%clk 0:02:59.5]} 3... dxe4 {[%clk 0:03:01.2]}
4. Nxe4 {[%clk 0:03:00.1]} 4... Nf6 {[%clk 0:03:01.7]} 5. Ng3 {[%clk 0:02:59.9]}
5... h5 {[%clk 0:03:01.7]} 6. h4 {[%clk 0:02:58.8]} 6... Bg4 {[%clk 0:03:00.3]}
7. Be2 {[%clk 0:02:58.6]} 7... c5 {[%clk 0:02:54.6]} 8. Be3 {[%clk 0:02:54.9]}
8... cxd4 {[%clk 0:02:45.4]} 9. Qxd4 {[%clk 0:02:51.1]} 9... Nc6 {[%clk
0:02:43.6]} 10. Qxd8+ {[%clk 0:02:40.1]} 10... Rxd8 {[%clk 0:02:43.4]} 11. Nf3
{[%clk 0:02:39.5]} 11... a6 {[%clk 0:02:39.7]} 12. c3 {[%clk 0:02:37.8]} 12...
e6 {[%clk 0:02:39.6]} 13. Ng5 {[%clk 0:02:29.1]} 13... Nd5 {[%clk 0:01:39.6]}
14. Bxg4 {[%clk 0:02:23.3]} 14... Nxe3 {[%clk 0:01:36.2]} 15. fxe3 {[%clk
0:02:21.7]} 15... hxg4 {[%clk 0:01:36.2]} 16. Rf1 {[%clk 0:02:13.3]} 16... Rd7
{[%clk 0:01:20.1]} 17. Rd1 {[%clk 0:02:01.8]} 17... Rxd1+ {[%clk 0:01:09.4]} 18.
Kxd1 {[%clk 0:01:59.4]} 18... Rxh4 {[%clk 0:01:05.3]} 19. Nxf7 {[%clk
0:01:55.2]} 19... Rh2 {[%clk 0:00:57]} 20. Rf2 {[%clk 0:01:52.3]} 20... Be7
{[%clk 0:00:31.1]} 21. Ne4 {[%clk 0:01:41.9]} 21... g3 {[%clk 0:00:17.9]} 22.
Nfd6+ {[%clk 0:01:37.3]} 22... Kd7 {[%clk 0:00:14.5]} 23. Rd2 {[%clk 0:01:36.4]}
23... Kc7 {[%clk 0:00:11.4]} 24. Ne8+ {[%clk 0:01:34.6]} 24... Kb8 {[%clk
0:00:10.6]} 25. Nxg7 {[%clk 0:01:34.6]} 25... Ne5 {[%clk 0:00:08.5]} 26. Nxg3
{[%clk 0:01:30.6]} 26... Ng4 {[%clk 0:00:07.5]} 27. Nf1 {[%clk 0:01:24.8]} 27...
Bf6 {[%clk 0:00:06.9]} 28. Nxh2 {[%clk 0:01:24]} 28... Nxe3+ {[%clk 0:00:05.7]}
29. Ke2 {[%clk 0:01:22.8]} 29... Bxg7 {[%clk 0:00:05.2]} 30. Kxe3 {[%clk
0:01:22.7]} 1-0

[Event "Late-Titled-Tuesday-Blitz-February-13-2024"]
[Site "Chess.com"]
[Date "2024.02.13"]
[Round "11"]
[White "egnfanclub"]
[Black "djano"]
[Result "0-1"]
[WhiteElo "2380"]
[BlackElo "2671"]
[TimeControl "180+1"]
[EndTime "16:03:58 PST"]
[Termination "djano won on time"]

1. e4 {[%clk 0:03:00.9]} 1... c5 {[%clk 0:02:59.7]} 2. Nc3 {[%clk 0:03:00.2]}
2... Nc6 {[%clk 0:02:59.9]} 3. f4 {[%clk 0:02:59.8]} 3... g6 {[%clk 0:02:58.1]}
4. Nf3 {[%clk 0:03:00]} 4... Bg7 {[%clk 0:02:58.7]} 5. Bc4 {[%clk 0:03:00.6]}
5... e6 {[%clk 0:02:59.1]} 6. f5 {[%clk 0:03:01.3]} 6... Nge7 {[%clk 0:02:59.7]}
7. fxe6 {[%clk 0:03:01.9]} 7... fxe6 {[%clk 0:03:00.6]} 8. d3 {[%clk 0:03:02.5]}
8... O-O {[%clk 0:02:59.8]} 9. O-O {[%clk 0:03:03.1]} 9... h6 {[%clk 0:02:56.5]}
10. Bb3 {[%clk 0:03:02.7]} 10... g5 {[%clk 0:02:54.8]} 11. h4 {[%clk 0:02:26]}
11... g4 {[%clk 0:02:51.7]} 12. Nh2 {[%clk 0:02:26.2]} 12... h5 {[%clk
0:02:46.4]} 13. Be3 {[%clk 0:02:23.2]} 13... Nd4 {[%clk 0:02:45.4]} 14. Qd2
{[%clk 0:02:15]} 14... Ng6 {[%clk 0:02:40.3]} 15. Bg5 {[%clk 0:02:09.4]} 15...
Qc7 {[%clk 0:02:38.6]} 16. Rxf8+ {[%clk 0:02:07.5]} 16... Nxf8 {[%clk
0:02:35.2]} 17. Rf1 {[%clk 0:01:53.1]} 17... Ng6 {[%clk 0:02:35.2]} 18. Qf2
{[%clk 0:01:21.7]} 18... d5 {[%clk 0:02:22.1]} 19. exd5 {[%clk 0:01:17.7]} 19...
g3 {[%clk 0:02:22.2]} 20. Qe3 {[%clk 0:00:55.1]} 20... gxh2+ {[%clk 0:02:20.9]}
21. Kh1 {[%clk 0:00:55.8]} 21... Nxb3 {[%clk 0:02:00]} 22. axb3 {[%clk
0:00:56.7]} 22... e5 {[%clk 0:01:48.5]} 23. Ne4 {[%clk 0:00:50.4]} 23... Bg4
{[%clk 0:01:31.2]} 24. Nf6+ {[%clk 0:00:46.4]} 24... Kh8 {[%clk 0:01:28.1]} 25.
Qe4 {[%clk 0:00:35.5]} 25... Qf7 {[%clk 0:01:24.2]} 26. Kxh2 {[%clk 0:00:09.7]}
26... Rf8 {[%clk 0:01:08.1]} 27. Nxg4 {[%clk 0:00:04.9]} 27... Qxf1 {[%clk
0:01:09]} 28. Qxg6 {[%clk 0:00:04]} 28... hxg4 {[%clk 0:01:08.1]} 0-1

[Event "Late-Titled-Tuesday-Blitz-February-13-2024"]
[Site "Chess.com"]
[Date "2024.02.13"]
[Round "11"]
[White "Jahonas"]
[Black "Canal_Showdrez"]
[Result "1-0"]
[WhiteElo "2388"]
[BlackElo "2091"]
[TimeControl "180+1"]
[EndTime "16:03:58 PST"]
[Termination "Jahonas won by resignation"]

1. d4 {[%clk 0:03:00.9]} 1... Nf6 {[%clk 0:02:59.5]} 2. c4 {[%clk 0:03:01.2]}
2... g6 {[%clk 0:02:59.8]} 3. Nf3 {[%clk 0:03:01.7]} 3... Bg7 {[%clk 0:03:00]}
4. Nc3 {[%clk 0:03:01.9]} 4... d6 {[%clk 0:03:00.5]} 5. Bg5 {[%clk 0:03:02.6]}
5... O-O {[%clk 0:03:00.4]} 6. e4 {[%clk 0:03:02.4]} 6... h6 {[%clk 0:02:53.7]}
7. Bxf6 {[%clk 0:03:01.5]} 7... Bxf6 {[%clk 0:02:53.3]} 8. e5 {[%clk 0:03:00.1]}
8... dxe5 {[%clk 0:02:53.3]} 9. dxe5 {[%clk 0:03:00]} 9... Qxd1+ {[%clk
0:02:52.5]} 10. Rxd1 {[%clk 0:02:59.4]} 10... Bg7 {[%clk 0:02:52.8]} 11. Nd5
{[%clk 0:02:59.3]} 11... Bg4 {[%clk 0:02:39.7]} 12. Nxc7 {[%clk 0:02:56.7]}
12... Nc6 {[%clk 0:02:37.4]} 13. Nxa8 {[%clk 0:02:55.6]} 13... Bxf3 {[%clk
0:02:27.4]} 14. gxf3 {[%clk 0:02:54.7]} 14... Bxe5 {[%clk 0:02:27.5]} 15. f4
{[%clk 0:02:39.5]} 15... Bxf4 {[%clk 0:02:25.4]} 16. Rd7 {[%clk 0:02:37.9]}
16... Rxa8 {[%clk 0:02:18.1]} 17. Bg2 {[%clk 0:02:36.2]} 17... Ne5 {[%clk
0:02:07.9]} 18. Rd4 {[%clk 0:02:24]} 18... g5 {[%clk 0:02:00.1]} 19. O-O {[%clk
0:02:12.4]} 19... Rb8 {[%clk 0:01:58.9]} 20. Rfd1 {[%clk 0:02:09.9]} 20... Kg7
{[%clk 0:01:57.2]} 21. Rd8 {[%clk 0:02:08.1]} 21... Rxd8 {[%clk 0:01:56.5]} 22.
Rxd8 {[%clk 0:02:07.5]} 22... Nxc4 {[%clk 0:01:56.2]} 23. Bxb7 {[%clk
0:02:00.9]} 23... Nxb2 {[%clk 0:01:55.7]} 24. Ra8 {[%clk 0:01:58.9]} 24... Nd3
{[%clk 0:01:46.6]} 25. Rxa7 {[%clk 0:01:55]} 25... Bd6 {[%clk 0:01:46.2]} 26.
Ra8 {[%clk 0:01:34.2]} 26... Bc5 {[%clk 0:01:45.5]} 27. a4 {[%clk 0:01:33.3]}
27... Nxf2 {[%clk 0:01:45]} 28. Kf1 {[%clk 0:01:32]} 28... Ng4 {[%clk 0:01:43]}
29. h3 {[%clk 0:01:27.5]} 29... Ne5 {[%clk 0:01:26.9]} 30. a5 {[%clk 0:01:25.9]}
30... f5 {[%clk 0:01:23.8]} 31. a6 {[%clk 0:01:23.6]} 31... g4 {[%clk 0:01:24]}
32. hxg4 {[%clk 0:01:23.3]} 32... fxg4 {[%clk 0:01:24.4]} 33. a7 {[%clk
0:01:19.5]} 33... Bxa7 {[%clk 0:01:11.2]} 34. Rxa7 {[%clk 0:01:19]} 34... g3
{[%clk 0:01:11.7]} 35. Kg2 {[%clk 0:01:16.4]} 35... h5 {[%clk 0:01:03.8]} 36.
Be4 {[%clk 0:01:10.1]} 36... h4 {[%clk 0:01:00.8]} 37. Rxe7+ {[%clk 0:01:08.9]}
37... Kf6 {[%clk 0:01:01.4]} 38. Re8 {[%clk 0:01:07.3]} 38... Ng4 {[%clk
0:00:48]} 39. Kh3 {[%clk 0:01:02.9]} 39... Kg5 {[%clk 0:00:45.3]} 40. Rg8+
{[%clk 0:01:02]} 40... Kf4 {[%clk 0:00:44.3]} 41. Rxg4+ {[%clk 0:01:01.9]} 41...
Ke3 {[%clk 0:00:44.8]} 42. Kxh4 {[%clk 0:01:01.6]} 42... g2 {[%clk 0:00:45.2]}
43. Bxg2 {[%clk 0:01:00.6]} 43... Kf2 {[%clk 0:00:45.5]} 1-0

[Event "Late-Titled-Tuesday-Blitz-February-13-2024"]
[Site "Chess.com"]
[Date "2024.02.13"]
[Round "11"]
[White "baki83"]
[Black "DeTimmerman"]
[Result "1-0"]
[WhiteElo "2873"]
[BlackElo "2721"]
[TimeControl "180+1"]
[EndTime "16:04:11 PST"]
[Termination "baki83 won by resignation"]

1. e4 {[%clk 0:03:00.9]} 1... e5 {[%clk 0:02:59.5]} 2. Nf3 {[%clk 0:03:00.8]}
2... Nc6 {[%clk 0:03:00.2]} 3. Bb5 {[%clk 0:03:00.6]} 3... f5 {[%clk 0:03:00.2]}
4. d3 {[%clk 0:03:00.6]} 4... fxe4 {[%clk 0:03:00.6]} 5. dxe4 {[%clk 0:03:01]}
5... Nf6 {[%clk 0:03:01.3]} 6. Qd3 {[%clk 0:03:01.4]} 6... d6 {[%clk 0:03:01.6]}
7. O-O {[%clk 0:03:01]} 7... Be7 {[%clk 0:03:02.1]} 8. c4 {[%clk 0:03:01.3]}
8... O-O {[%clk 0:03:02.1]} 9. Bxc6 {[%clk 0:03:01.9]} 9... bxc6 {[%clk
0:03:02.3]} 10. Nc3 {[%clk 0:03:02.6]} 10... c5 {[%clk 0:02:52.3]} 11. Bg5
{[%clk 0:03:00.4]} 11... Kh8 {[%clk 0:02:52.5]} 12. h3 {[%clk 0:02:58.6]} 12...
Be6 {[%clk 0:02:50.8]} 13. Rad1 {[%clk 0:02:53.4]} 13... Nd7 {[%clk 0:02:49.9]}
14. Bxe7 {[%clk 0:02:52.8]} 14... Qxe7 {[%clk 0:02:50.1]} 15. Nd2 {[%clk
0:02:51.3]} 15... Nb6 {[%clk 0:02:42.2]} 16. b3 {[%clk 0:02:51.2]} 16... Qg5
{[%clk 0:02:41.2]} 17. Kh1 {[%clk 0:02:46.7]} 17... Rf7 {[%clk 0:02:38.7]} 18.
Nd5 {[%clk 0:02:46.1]} 18... Nxd5 {[%clk 0:02:31]} 19. cxd5 {[%clk 0:02:45.3]}
19... Bd7 {[%clk 0:02:31]} 20. Qe3 {[%clk 0:02:44]} 20... Qh4 {[%clk 0:02:24.2]}
21. Nf3 {[%clk 0:02:39.6]} 21... Qh5 {[%clk 0:02:22.5]} 22. Ng1 {[%clk
0:02:36.5]} 22... Raf8 {[%clk 0:02:21.1]} 23. Rc1 {[%clk 0:02:35.7]} 23... Bb5
{[%clk 0:02:20.5]} 24. f3 {[%clk 0:02:32.4]} 24... Bxf1 {[%clk 0:02:19.7]} 25.
Rxf1 {[%clk 0:02:33.3]} 25... Qh4 {[%clk 0:02:05]} 26. Rc1 {[%clk 0:02:33.3]}
26... g5 {[%clk 0:01:59.9]} 27. Ne2 {[%clk 0:02:24.5]} 27... Rxf3 {[%clk
0:01:41.3]} 28. gxf3 {[%clk 0:02:22.3]} 28... Qxh3+ {[%clk 0:01:41.5]} 29. Kg1
{[%clk 0:02:22.1]} 29... Rxf3 {[%clk 0:01:42.4]} 30. Qxg5 {[%clk 0:02:17]} 30...
Rf8 {[%clk 0:01:43]} 31. Ng3 {[%clk 0:02:06.9]} 31... h6 {[%clk 0:01:33]} 32.
Qg6 {[%clk 0:02:02.9]} 32... Rg8 {[%clk 0:01:29.1]} 33. Qf6+ {[%clk 0:02:02.7]}
33... Rg7 {[%clk 0:01:24]} 34. Rc3 {[%clk 0:02:01.2]} 34... Qg4 {[%clk
0:01:05.2]} 35. Qxh6+ {[%clk 0:01:49.7]} 35... Kg8 {[%clk 0:01:05.1]} 36. Qe6+
{[%clk 0:01:49.5]} 36... Qxe6 {[%clk 0:01:03.8]} 37. dxe6 {[%clk 0:01:50.4]}
37... Kf8 {[%clk 0:01:04.4]} 38. Kf2 {[%clk 0:01:49]} 38... Rg6 {[%clk
0:01:04.4]} 39. b4 {[%clk 0:01:43.5]} 39... Rxe6 {[%clk 0:01:02.5]} 40. bxc5
{[%clk 0:01:43.4]} 40... dxc5 {[%clk 0:01:03.3]} 41. Rxc5 {[%clk 0:01:43.5]}
41... Ra6 {[%clk 0:01:04.2]} 42. Rc2 {[%clk 0:01:42.3]} 42... Ke8 {[%clk
0:01:00.3]} 43. Nf5 {[%clk 0:01:42]} 43... Kd7 {[%clk 0:01:00.7]} 44. Ne3 {[%clk
0:01:42.1]} 44... Ra4 {[%clk 0:01:00.2]} 45. Nc4 {[%clk 0:01:42.1]} 45... Ke6
{[%clk 0:00:59.8]} 46. Ke3 {[%clk 0:01:42.3]} 46... Rb4 {[%clk 0:00:51]} 47. Kd3
{[%clk 0:01:42.8]} 47... Rb1 {[%clk 0:00:51.1]} 48. Rh2 {[%clk 0:01:43]} 48...
Rd1+ {[%clk 0:00:50.7]} 49. Ke3 {[%clk 0:01:32]} 49... Re1+ {[%clk 0:00:46.4]}
50. Kf3 {[%clk 0:01:30.3]} 50... Ra1 {[%clk 0:00:44.4]} 51. Rh6+ {[%clk
0:01:28.2]} 51... Ke7 {[%clk 0:00:44.4]} 52. Ra6 {[%clk 0:01:28]} 52... Rf1+
{[%clk 0:00:39.8]} 53. Ke2 {[%clk 0:01:27.9]} 1-0

[Event "Late-Titled-Tuesday-Blitz-February-13-2024"]
[Site "Chess.com"]
[Date "2024.02.13"]
[Round "11"]
[White "RantomOpening"]
[Black "Boninknights"]
[Result "1-0"]
[WhiteElo "2521"]
[BlackElo "2373"]
[TimeControl "180+1"]
[EndTime "16:04:11 PST"]
[Termination "RantomOpening won by resignation"]

1. e4 {[%clk 0:03:00]} 1... e5 {[%clk 0:02:59.7]} 2. Nf3 {[%clk 0:02:59.6]} 2...
Qe7 {[%clk 0:02:59.4]} 3. c3 {[%clk 0:02:58]} 3... g6 {[%clk 0:02:56.9]} 4. Bd3
{[%clk 0:02:57.3]} 4... Bg7 {[%clk 0:02:55.3]} 5. O-O {[%clk 0:02:57.6]} 5...
Nf6 {[%clk 0:02:53.9]} 6. Bc2 {[%clk 0:02:58.3]} 6... O-O {[%clk 0:02:52.5]} 7.
d4 {[%clk 0:02:58.8]} 7... d6 {[%clk 0:02:51.8]} 8. Re1 {[%clk 0:02:58.8]} 8...
Bg4 {[%clk 0:02:44.3]} 9. Nbd2 {[%clk 0:02:58.2]} 9... Nc6 {[%clk 0:02:33.5]}
10. d5 {[%clk 0:02:57.5]} 10... Nd8 {[%clk 0:02:29.4]} 11. Nf1 {[%clk
0:02:58.1]} 11... Nd7 {[%clk 0:02:16.9]} 12. Ng3 {[%clk 0:02:58]} 12... f5
{[%clk 0:02:12.1]} 13. exf5 {[%clk 0:02:57.7]} 13... gxf5 {[%clk 0:02:11.2]} 14.
h3 {[%clk 0:02:57.6]} 14... Bxf3 {[%clk 0:02:07.7]} 15. Qxf3 {[%clk 0:02:58.5]}
15... f4 {[%clk 0:02:05.1]} 16. Nf5 {[%clk 0:02:58.4]} 16... Qg5 {[%clk
0:02:02.6]} 17. h4 {[%clk 0:02:54.5]} 17... Qf6 {[%clk 0:01:58.2]} 18. Qh5
{[%clk 0:02:53.5]} 18... h6 {[%clk 0:01:48.9]} 19. Bxf4 {[%clk 0:02:11.8]} 19...
exf4 {[%clk 0:01:44.6]} 20. Re7 {[%clk 0:02:11.3]} 20... Rf7 {[%clk 0:01:37.8]}
21. Rae1 {[%clk 0:02:09]} 21... Ne5 {[%clk 0:01:25.8]} 22. Re8+ {[%clk
0:01:55.2]} 22... Rf8 {[%clk 0:01:21.3]} 23. Ne7+ {[%clk 0:01:52.4]} 23... Kh8
{[%clk 0:01:15.5]} 24. Rxe5 {[%clk 0:01:49.2]} 24... dxe5 {[%clk 0:01:09.4]} 25.
Ng6+ {[%clk 0:01:48.3]} 25... Kg8 {[%clk 0:01:09.1]} 26. Nxf8 {[%clk 0:01:14.8]}
26... Bxf8 {[%clk 0:01:06.7]} 27. Qg4+ {[%clk 0:01:03]} 27... Qg7 {[%clk
0:01:02.8]} 28. Qf5 {[%clk 0:00:58.3]} 28... Nf7 {[%clk 0:00:46.1]} 29. Rxa8
{[%clk 0:00:56.6]} 29... f3 {[%clk 0:00:26.2]} 30. g3 {[%clk 0:00:45.5]} 1-0